fUST/lending_fUST_20250827
["ID","MTS","AMOUNT","RATE_DAILY","PERIOD"]
[381472376,1756228165138,-500.0,0.000282,5]
[381472404,1756228235156,-803.5420578,0.00028533,10]
[381472405,1756228235165,-1000.0,0.00028748,5]
[381472407,1756228235174,-155.20002006,0.00029329,100]
[381472409,1756228235184,-155.44,0.0002933,15]
[381472410,1756228235193,-153.35,0.0002933,15]
[381472412,1756228235203,-300.0,0.00029428,2]
[381472413,1756228235212,-1132.0,0.00029428,2]
[381472414,1756228235222,-9908.92995085,0.00029429,2]
[381472415,1756228235231,-500.0,0.00029429,2]
[381472418,1756228235240,-500.0,0.00029429,2]
[381472419,1756228235249,-353.87523,0.00029429,2]
[381472421,1756228235259,-500.0,0.00029429,2]
[381472423,1756228235268,-373.36982977,0.00029429,2]
[381472424,1756228235277,-420.59286297,0.00029429,2]
[381472425,1756228235288,-500.0,0.00029429,2]
[381472428,1756228235297,-587.34953461,0.00029429,2]
[381472431,1756228235306,-616.25311484,0.00029429,2]
[381472432,1756228235315,-239.88106416,0.00029429,2]
[381472434,1756228235324,-500.0,0.00029429,2]
[381472436,1756228235333,-500.0,0.00029429,2]
[381472437,1756228235342,-500.0,0.00029429,2]
[381472439,1756228235351,-500.0,0.00029429,2]
[381472441,1756228235360,-153.35,0.0002943,15]
[381472442,1756228235368,-153.35,0.0002953,15]
[381472444,1756228235377,-153.35,0.0002963,15]
[381472445,1756228235385,-153.35,0.0002973,15]
[381472447,1756228235394,-153.35,0.0002983,15]
[381472449,1756228235403,-153.35,0.0002993,15]
[381472450,1756228235412,-200.0,0.0003,7]
[381472452,1756228235420,-179.0,0.0003,14]
[381472453,1756228235428,-153.35,0.0003003,15]
[381472455,1756228235437,-153.35,0.0003013,15]
[381472456,1756228235446,-153.35,0.0003023,15]
[381472458,1756228235456,-182.75,0.0003023,15]
[381472460,1756228235465,-845.07960918,0.00030256,2]
[381472461,1756228235474,-803.5420578,0.00030259,13]
[381472463,1756228235483,-153.35,0.0003033,15]
[381472464,1756228235492,-153.35,0.0003043,15]
[381472466,1756228235501,-48721.14654457,0.000305,2]
[381472557,1756228237980,-3488.84050799,0.00030254,2]
[381472558,1756228237994,-1457.6793555,0.00030254,2]
[381472559,1756228238033,-993.02280609,0.00030254,2]
[381472560,1756228238046,-644.02348662,0.00030254,2]
[381472679,1756228243579,-220.0,0.00028725,2]
[381472680,1756228243589,-6120.87182306,0.00030254,2]
[381472681,1756228243599,-113347.28651227,0.000305,2]
[381472739,1756228246426,-1818.93079135,0.000305,2]
[381472740,1756228246438,-2971.18365267,0.000305,2]
[381472896,1756228333296,646.98594103,0.000199,2]
[381472897,1756228333340,646.98594081,0.0002508,2]
[381472898,1756228333599,646.98594081,0.00021627,2]
[381472899,1756228333705,646.98594081,0.00023353,2]
[381472900,1756228333817,646.98594081,0.00026806,6]
[381472902,1756228399795,163.125347,0.00013699,2]
[381472903,1756228400043,163.125347,0.00021404,2]
[381472907,1756228475974,151.0,0.00027397,120]
[381472908,1756228480399,1000.0,0.000265,2]
[381472909,1756228480774,1000.0,0.000265,2]
[381472910,1756228500855,539.15495082,0.000199,2]
[381472911,1756228500973,539.15495067,0.0002508,2]
[381472912,1756228501263,539.15495067,0.00023353,2]
[381472913,1756228501913,539.15495067,0.00021627,2]
[381472919,1756228683669,467.74566856,0.000199,2]
[381472920,1756228684073,467.74566849,0.00021627,2]
[381472921,1756228684330,467.74566849,0.0002508,2]
[381472922,1756228684542,467.74566849,0.00026806,6]
[381472923,1756228684673,467.74566849,0.00023353,2]
[381472924,1756228818114,-1000000.0,0.0003206,20]
[381472925,1756228828640,-356261.29957159,0.0003206,20]
[381472926,1756228828684,-858.77630464,0.0003206,30]
[381472927,1756228828727,-882.10293333,0.0003206,30]
[381472928,1756228828771,-6409.8759588,0.0003206,30]
[381472929,1756228854503,-155.20002006,0.0002901,98]
[381472930,1756228854550,-179.0,0.0003,14]
[381472931,1756228854599,-153.35,0.0003053,15]
[381472932,1756228854645,-153.35,0.0003063,15]
[381472933,1756228854690,-153.35,0.0003073,15]
[381472934,1756228854735,-153.35,0.0003083,15]
[381472935,1756228854782,-153.35,0.0003093,15]
[381472936,1756228854831,-153.35,0.0003103,15]
[381472937,1756228854881,-873.88,0.00031128,10]
[381472939,1756228854934,-174.77,0.00031128,10]
[381472940,1756228854985,-153.35,0.0003113,15]
[381472941,1756228855035,-153.35,0.0003123,15]
[381472942,1756228855084,-153.44,0.0003133,15]
[381472943,1756228855130,-4300.0,0.00031507,60]
[381472944,1756228855178,-600.0,0.00031619,20]
[381472945,1756228855238,-179.0,0.00031644,14]
[381472946,1756228855286,-151.0,0.000319,16]
[381472947,1756228855331,-1536.84,0.00031995,60]
[381472948,1756228855374,-1439.89,0.00031998,30]
[381472949,1756228855416,-448797.55092343,0.00032,60]
[381472952,1756228855462,-1500.0,0.0003207,28]
[381472955,1756228855503,-1500.0,0.0003207,28]
[381472958,1756228855544,-1500.0,0.0003207,28]
[381472961,1756228855585,-1500.0,0.0003207,28]
[381472964,1756228855626,-1500.0,0.0003207,28]
[381472966,1756228855666,-1500.0,0.0003207,28]
[381472968,1756228855710,-1500.0,0.0003207,28]
[381472972,1756228855755,-1500.0,0.0003207,28]
[381472975,1756228855801,-1500.0,0.0003207,28]
[381472978,1756228855847,-1616.619519,0.0003207,28]
[381472981,1756228855892,-343.9890104,0.00032076,60]
[381472993,1756228856126,-28790.39,0.000335,14]
[381472996,1756228856173,-8358.72,0.000338,14]
[381472999,1756228856222,-162.480656,0.00034402,15]
[381473002,1756228856273,-720.0,0.00034781,20]
[381473005,1756228856320,-162.480656,0.00035338,60]
[381473008,1756228856369,-162.480656,0.00035436,15]
[381473009,1756228856414,-28790.39,0.000355,14]
[381473010,1756228856458,-200.0,0.0003575,120]
[381473011,1756228856500,-8358.72,0.00036,14]
[381473012,1756228856544,-162.480656,0.0003645,60]
[381473013,1756228856586,-2324.50192762,0.00037,120]
[381473014,1756228856628,-162.480656,0.00037215,20]
[381473015,1756228856673,-864.0,0.00038259,20]
[381473016,1756228856714,-28790.39,0.000383,14]
[381473017,1756228856756,-500.0,0.00038356,120]
[381473018,1756228856799,-8358.72,0.000384,14]
[381473019,1756228856841,-2600.0,0.000388,60]
[381473020,1756228856884,-405303.78531949,0.00038875,120]
[381473021,1756228857306,389.78805722,0.000199,2]
[381473022,1756228857381,389.78805707,0.0002508,2]
[381473023,1756228857533,389.78805707,0.00023353,2]
[381473024,1756228857639,389.78805707,0.00021627,2]
[381473025,1756228861793,-389.78805707,0.00028533,10]
[381473026,1756228861847,-389.78805707,0.00030259,13]
[381473027,1756228861910,-389.78805707,0.00031986,17]
[381473028,1756228861968,-389.78805707,0.00033712,21]
[381473029,1756228862021,-389.78805707,0.00037166,28]
[381473030,1756228862067,-578599.45153228,0.00038875,120]
[381473031,1756228862125,-389.78805707,0.00038892,32]
[381473032,1756228862171,-500.0,0.00038904,120]
[381473033,1756228862215,-162.480656,0.00038972,20]
[381473034,1756228862259,-160.0,0.00039,120]
[381473035,1756228862318,-845.07960918,0.00039,120]
[381473036,1756228862375,-232.53539143,0.00039,120]
[381473037,1756228862422,-217.18350301,0.00039,120]
[381473038,1756228862467,-500.0,0.00039452,120]
[381473039,1756228862510,-464.88596811,0.00039999,31]
[381473040,1756228862554,-500.0,0.00039999,31]
[381473041,1756228862596,-500.0,0.00039999,31]
[381473042,1756228862637,-500.0,0.00039999,31]
[381473043,1756228862678,-500.0,0.00039999,31]
[381473044,1756228862719,-500.0,0.00039999,31]
[381473045,1756228862764,-500.0,0.00039999,31]
[381473046,1756228862812,-500.0,0.00039999,31]
[381473047,1756228862859,-500.0,0.00039999,31]
[381473048,1756228862905,-500.0,0.00039999,31]
[381473049,1756228862951,-500.0,0.00039999,31]
[381473050,1756228862999,-500.0,0.00039999,31]
[381473051,1756228863049,-500.0,0.00039999,31]
[381473052,1756228863100,-500.0,0.00039999,31]
[381473053,1756228863153,-500.0,0.00039999,31]
[381473054,1756228863211,-500.0,0.00039999,31]
[381473055,1756228863260,-500.0,0.00039999,31]
[381473056,1756228863310,-500.0,0.00039999,31]
[381473057,1756228863361,-500.0,0.00039999,31]
[381473058,1756228863410,-500.0,0.00039999,31]
[381473059,1756228863460,-500.0,0.00039999,31]
[381473060,1756228863509,-500.0,0.00039999,31]
[381473061,1756228863559,-500.0,0.00039999,31]
[381473062,1756228863606,-500.0,0.00039999,31]
[381473063,1756228863655,-500.0,0.00039999,31]
[381473064,1756228863703,-500.0,0.00039999,31]
[381473065,1756228863928,-500.0,0.00039999,31]
[381473066,1756228863980,-500.0,0.00039999,31]
[381473067,1756228864033,-500.0,0.00039999,31]
[381473068,1756228864088,-500.0,0.00039999,31]
[381473069,1756228864136,-500.0,0.00039999,31]
[381473070,1756228864186,-500.0,0.00039999,31]
[381473071,1756228864234,-500.0,0.00039999,31]
[381473072,1756228864282,-237.21625567,0.00039999,31]
[381473073,1756228864331,-500.0,0.00039999,31]
[381473074,1756228864383,-500.0,0.00039999,31]
[381473075,1756228864429,-500.0,0.00039999,31]
[381473076,1756228864476,-500.0,0.00039999,31]
[381473077,1756228864524,-500.0,0.00039999,31]
[381473078,1756228864573,-500.0,0.00039999,31]
[381473079,1756228864621,-500.0,0.00039999,31]
[381473080,1756228864666,-500.0,0.00039999,31]
[381473081,1756228864713,-500.0,0.00039999,31]
[381473082,1756228864762,-500.0,0.00039999,31]
[381473083,1756228864813,-500.0,0.00039999,31]
[381473084,1756228864861,-500.0,0.00039999,31]
[381473085,1756228864909,-500.0,0.00039999,31]
[381473086,1756228864958,-500.0,0.00039999,31]
[381473087,1756228865007,-500.0,0.00039999,31]
[381473088,1756228865055,-500.0,0.00039999,31]
[381473089,1756228865103,-500.0,0.00039999,31]
[381473090,1756228865149,-500.0,0.00039999,31]
[381473091,1756228865200,-500.0,0.00039999,31]
[381473092,1756228865246,-447.96573744,0.00039999,31]
[381473093,1756228865292,-1195.81377727,0.00039999,31]
[381473094,1756228865345,-1195.81377727,0.00039999,31]
[381473095,1756228865396,-1195.81377727,0.00039999,31]
[381473096,1756228865442,-1195.81377727,0.00039999,31]
[381473097,1756228865487,-1195.81377727,0.00039999,31]
[381473098,1756228865532,-1195.81377727,0.00039999,31]
[381473099,1756228865575,-1195.81377727,0.00039999,31]
[381473100,1756228865618,-1195.81377727,0.00039999,31]
[381473101,1756228865660,-1195.81377727,0.00039999,31]
[381473102,1756228865705,-1195.81377727,0.00039999,31]
[381473103,1756228865751,-1195.81377727,0.00039999,31]
[381473104,1756228865801,-1195.81377727,0.00039999,31]
[381473105,1756228865849,-1195.81377727,0.00039999,31]
[381473106,1756228865895,-1195.81377727,0.00039999,31]
[381473107,1756228865943,-1195.81377727,0.00039999,31]
[381473108,1756228865991,-1195.81377727,0.00039999,31]
[381473109,1756228866039,-1195.81377727,0.00039999,31]
[381473110,1756228866084,-1195.81377727,0.00039999,31]
[381473111,1756228866130,-1195.81377727,0.00039999,31]
[381473112,1756228866175,-1195.81377727,0.00039999,31]
[381473113,1756228866219,-1195.81377727,0.00039999,31]
[381473114,1756228866267,-500.0,0.0004,120]
[381473115,1756228866310,-1000.0,0.00040079,30]
[381473116,1756228866353,-500.0,0.00040084,30]
[381473117,1756228866393,-1000.0,0.00040126,30]
[381473118,1756228866433,-500.0,0.00040222,30]
[381473119,1756228866473,-8629.62995869,0.00040331,10]
[381473120,1756228866514,-500.0,0.0004036,30]
[381473121,1756228866555,-1000.0,0.00040383,30]
[381473122,1756228866595,-8358.72,0.000404,14]
[381473123,1756228866637,-500.0,0.00040547,120]
[381473124,1756228866683,-389.78805707,0.00040619,36]
[381473125,1756228866725,-2200.0,0.00040664,14]
[381473126,1756228866769,-114172.03402818,0.000408,120]
[381473127,1756228866812,-500.0,0.00040858,30]
[381473128,1756228866859,-199.0,0.00040895,120]
[381473129,1756228866902,-1000.0,0.00040922,30]
[381473130,1756228866946,-500.0,0.00040944,30]
[381473131,1756228866993,-199.0,0.00040995,120]
[381473132,1756228867036,-28790.39,0.00041,14]
[381473133,1756228867078,-216.09257821,0.00041,10]
[381473134,1756228867120,-160.0,0.00041,10]
[381473135,1756228867164,-160.0,0.00041,30]
[381473136,1756228867214,-160.0,0.00041,10]
[381473137,1756228867255,-160.0,0.00041,30]
[381473138,1756228867295,-845.07960918,0.00041,10]
[381473139,1756228867341,-845.07960918,0.00041,30]
[381473140,1756228867381,-232.53539143,0.00041,10]
[381473141,1756228867421,-232.53539143,0.00041,30]
[381473142,1756228867461,-417.15472785,0.00041,10]
[381473143,1756228867501,-217.18350301,0.00041,10]
[381473144,1756228867539,-217.18350301,0.00041,30]
[381473145,1756228867578,-966.45,0.00041085,30]
[381473146,1756228867620,-480.0,0.00041095,120]
[381473147,1756228867661,-480.0,0.00041095,120]
[381473148,1756228867703,-480.0,0.00041095,120]
[381473149,1756228867746,-1178.91,0.00041095,120]
[381473150,1756228867793,-591.41682199,0.00041095,120]
[381473151,1756228867838,-480.0,0.00041095,120]
[381473152,1756228867883,-480.0,0.00041095,120]
[381473153,1756228867926,-480.0,0.00041095,120]
[381473154,1756228867972,-480.0,0.00041095,120]
[381473155,1756228868017,-480.0,0.00041095,120]
[381473156,1756228868060,-503.47,0.00041095,20]
[381473157,1756228868103,-510.98,0.00041095,120]
[381473158,1756228868144,-512.44,0.00041095,120]
[381473159,1756228868189,-480.0,0.00041095,120]
[381473160,1756228868230,-480.0,0.00041095,120]
[381473161,1756228868273,-480.0,0.00041095,120]
[381473162,1756228868314,-200.0,0.00041095,120]
[381473163,1756228868357,-480.0,0.00041095,120]
[381473164,1756228868399,-480.0,0.00041095,120]
[381473165,1756228868443,-627.0058338,0.00041095,120]
[381473166,1756228868486,-480.0,0.00041095,120]
[381473167,1756228868531,-480.0,0.00041095,120]
[381473168,1756228868727,-480.0,0.00041095,120]
[381473169,1756228868775,-480.0,0.00041095,120]
[381473170,1756228868821,-480.0,0.00041095,120]
[381473171,1756228868872,-480.0,0.00041095,120]
[381473172,1756228868921,-480.0,0.00041095,120]
[381473173,1756228868968,-480.0,0.00041095,120]
[381473174,1756228869015,-480.0,0.00041095,120]
[381473175,1756228869061,-612.25,0.00041095,120]
[381473176,1756228869108,-480.0,0.00041095,120]
[381473177,1756228869157,-480.0,0.00041095,120]
[381473178,1756228869205,-480.0,0.00041095,120]
[381473179,1756228869250,-480.0,0.00041095,120]
[381473180,1756228869296,-480.0,0.00041095,120]
[381473181,1756228869344,-480.0,0.00041095,120]
[381473182,1756228869389,-480.0,0.00041095,120]
[381473183,1756228869434,-575.67,0.00041095,120]
[381473184,1756228869690,-480.0,0.00041095,120]
[381473185,1756228869737,-480.0,0.00041095,120]
[381473186,1756228869783,-797.13,0.00041095,120]
[381473187,1756228869831,-506.95,0.00041095,14]
[381473188,1756228869880,-480.0,0.00041095,120]
[381473189,1756228869929,-480.0,0.00041095,120]
[381473190,1756228869977,-537.94,0.00041095,120]
[381473191,1756228870023,-480.0,0.00041095,120]
[381473192,1756228870067,-480.0,0.00041095,120]
[381473193,1756228870112,-480.0,0.00041095,120]
[381473194,1756228870157,-480.0,0.00041095,120]
[381473197,1756228870201,-480.0,0.00041095,120]
[381473200,1756228870244,-480.60242387,0.00041095,120]
[381473203,1756228870286,-480.0,0.00041095,120]
[381473206,1756228870328,-480.0,0.00041095,120]
[381473209,1756228870369,-480.0,0.00041095,120]
[381473212,1756228870407,-480.0,0.00041095,120]
[381473213,1756228870446,-480.0,0.00041095,120]
[381473214,1756228870485,-480.0,0.00041095,120]
[381473215,1756228870524,-824.45,0.00041095,120]
[381473216,1756228870563,-480.0,0.00041095,120]
[381473217,1756228870600,-480.0,0.00041095,120]
[381473218,1756228870636,-489.92,0.00041095,120]
[381473219,1756228870675,-480.0,0.00041095,120]
[381473220,1756228870713,-480.0,0.00041095,120]
[381473221,1756228870755,-656.61,0.00041095,120]
[381473222,1756228870798,-480.0,0.00041095,120]
[381473223,1756228870842,-480.0,0.00041095,120]
[381473224,1756228870885,-1305.73,0.00041095,120]
[381473225,1756228870928,-480.0,0.00041095,120]
[381473226,1756228870972,-480.0,0.00041095,120]
[381473227,1756228871014,-480.0,0.00041095,120]
[381473228,1756228871057,-480.0,0.00041095,120]
[381473229,1756228871099,-618.62108415,0.00041095,120]
[381473230,1756228871140,-480.0,0.00041095,120]
[381473231,1756228871187,-480.0,0.00041095,120]
[381473232,1756228871233,-480.0,0.00041095,120]
[381473233,1756228871276,-480.0,0.00041095,120]
[381473234,1756228871319,-480.0,0.00041095,120]
[381473235,1756228871361,-480.0,0.00041095,120]
[381473236,1756228871403,-480.0,0.00041095,120]
[381473237,1756228871443,-996.84,0.00041095,120]
[381473238,1756228871487,-480.0,0.00041095,120]
[381473239,1756228871529,-480.0,0.00041095,120]
[381473240,1756228871570,-1242.85,0.00041095,120]
[381473241,1756228871612,-480.0,0.00041095,120]
[381473242,1756228871652,-558.21,0.00041095,120]
[381473243,1756228871693,-480.0,0.00041095,120]
[381473244,1756228871736,-540.0,0.00041095,120]
[381473245,1756228871781,-480.0,0.00041095,120]
[381473246,1756228871831,-480.0,0.00041095,120]
[381473247,1756228871878,-1306.32,0.00041095,120]
[381473248,1756228871923,-480.0,0.00041095,120]
[381473249,1756228871969,-480.0,0.00041095,120]
[381473250,1756228872016,-480.0,0.00041095,120]
[381473251,1756228872061,-517.16,0.00041095,120]
[381473252,1756228872107,-480.0,0.00041095,120]
[381473253,1756228872163,-480.0,0.00041095,120]
[381473254,1756228872209,-480.0,0.00041095,120]
[381473255,1756228872250,-480.0,0.00041095,120]
[381473256,1756228872290,-480.0,0.00041095,120]
[381473257,1756228872329,-480.0,0.00041095,120]
[381473258,1756228872368,-480.0,0.00041095,120]
[381473259,1756228872409,-531.56,0.00041095,120]
[381473260,1756228872448,-480.0,0.00041095,120]
[381473261,1756228872485,-480.0,0.00041095,120]
[381473262,1756228872523,-480.0,0.00041095,120]
[381473263,1756228872563,-480.0,0.00041095,120]
[381473264,1756228872602,-480.0,0.00041095,120]
[381473265,1756228872641,-480.0,0.00041095,120]
[381473266,1756228872679,-480.0,0.00041095,120]
[381473267,1756228872720,-654.35,0.00041095,120]
[381473268,1756228872762,-480.0,0.00041095,120]
[381473269,1756228872803,-480.0,0.00041095,120]
[381473270,1756228872846,-480.0,0.00041095,120]
[381473271,1756228872887,-480.0,0.00041095,120]
[381473272,1756228872928,-480.0,0.00041095,120]
[381473273,1756228872970,-480.0,0.00041095,120]
[381473274,1756228873015,-853.08,0.00041095,120]
[381473275,1756228873061,-519.53,0.00041095,120]
[381473276,1756228873107,-480.0,0.00041095,120]
[381473277,1756228873156,-480.0,0.00041095,120]
[381473278,1756228873203,-523.02829222,0.00041095,120]
[381473279,1756228873250,-480.0,0.00041095,120]
[381473280,1756228873296,-189.86446288,0.00041095,120]
[381473281,1756228873345,-480.0,0.00041095,120]
[381473282,1756228873390,-511.75,0.00041095,120]
[381473283,1756228873586,-554.26,0.00041095,120]
[381473284,1756228873635,-480.0,0.00041095,120]
[381473285,1756228873681,-480.0,0.00041095,120]
[381473286,1756228873726,-480.0,0.00041095,120]
[381473287,1756228873771,-638.09,0.00041095,120]
[381473288,1756228873817,-480.0,0.00041095,120]
[381473289,1756228873862,-480.0,0.00041095,120]
[381473290,1756228873913,-480.0,0.00041095,120]
[381473291,1756228873976,-480.0,0.00041095,120]
[381473292,1756228874023,-480.0,0.00041095,120]
[381473293,1756228874067,-235.14532048,0.00041095,120]
[381473294,1756228874111,-218.54864796,0.00041095,120]
[381473295,1756228874160,-480.0,0.00041095,120]
[381473296,1756228874209,-488.52,0.00041095,120]
[381473297,1756228874257,-480.0,0.00041095,120]
[381473298,1756228874303,-480.0,0.00041095,120]
[381473299,1756228874350,-480.0,0.00041095,120]
[381473300,1756228874395,-480.0,0.00041095,120]
[381473301,1756228874439,-480.0,0.00041095,120]
[381473302,1756228874482,-480.0,0.00041095,120]
[381473303,1756228874525,-480.0,0.00041095,120]
[381473304,1756228874567,-480.0,0.00041095,120]
[381473305,1756228874609,-254.30866992,0.00041095,120]
[381473306,1756228874652,-480.0,0.00041095,120]
[381473307,1756228874693,-480.0,0.00041095,120]
[381473308,1756228874736,-480.0,0.00041095,120]
[381473309,1756228874778,-480.0,0.00041095,120]
[381473310,1756228874819,-1597.02,0.00041095,120]
[381473311,1756228874859,-480.0,0.00041095,120]
[381473312,1756228874902,-480.0,0.00041095,120]
[381473313,1756228874947,-480.0,0.00041095,120]
[381473314,1756228874991,-480.0,0.00041095,120]
[381473315,1756228875036,-480.0,0.00041095,120]
[381473316,1756228875079,-500.0,0.00041095,120]
[381473317,1756228875123,-1074.95,0.00041095,120]
[381473318,1756228875168,-480.0,0.00041095,120]
[381473319,1756228875211,-504.97,0.00041095,120]
[381473320,1756228875253,-480.0,0.00041095,120]
[381473321,1756228875294,-480.0,0.00041095,120]
[381473322,1756228875334,-480.0,0.00041095,120]
[381473323,1756228875374,-480.0,0.00041095,120]
[381473324,1756228875413,-480.0,0.00041095,120]
[381473325,1756228875451,-539.99,0.00041095,120]
[381473326,1756228875491,-480.0,0.00041095,120]
[381473327,1756228875531,-480.0,0.00041095,120]
[381473328,1756228875572,-480.0,0.00041095,120]
[381473329,1756228875613,-629.1,0.00041095,120]
[381473330,1756228875654,-778.68,0.00041095,120]
[381473331,1756228875695,-814.99,0.00041095,120]
[381473332,1756228875739,-618.03,0.00041095,120]
[381473333,1756228875785,-1598.39,0.00041095,120]
[381473334,1756228875832,-649.11,0.00041095,120]
[381473335,1756228875877,-480.0,0.00041095,120]
[381473336,1756228875923,-181.97962277,0.00041095,120]
[381473337,1756228875969,-480.0,0.00041095,120]
[381473338,1756228876014,-480.0,0.00041095,120]
[381473339,1756228876057,-480.0,0.00041095,120]
[381473340,1756228876098,-525.96,0.00041095,120]
[381473341,1756228876142,-480.0,0.00041095,120]
[381473342,1756228876187,-480.0,0.00041095,120]
[381473343,1756228876232,-1561.04,0.00041095,30]
[381473344,1756228876274,-332.10485045,0.00041095,120]
[381473345,1756228876318,-480.0,0.00041095,120]
[381473346,1756228876362,-1225.03,0.00041095,120]
[381473347,1756228876406,-480.0,0.00041095,90]
[381473348,1756228876448,-781.97,0.00041095,120]
[381473349,1756228876490,-480.0,0.00041095,120]
[381473350,1756228876529,-1169.69,0.00041095,120]
[381473351,1756228876567,-480.0,0.00041095,120]
[381473352,1756228876605,-480.0,0.00041095,120]
[381473353,1756228876644,-480.0,0.00041095,120]
[381473354,1756228876681,-480.0,0.00041095,120]
[381473355,1756228876720,-480.0,0.00041095,120]
[381473356,1756228876759,-480.0,0.00041095,120]
[381473357,1756228876798,-2993.11,0.00041095,120]
[381473358,1756228876838,-480.0,0.00041095,120]
[381473359,1756228876879,-480.0,0.00041095,120]
[381473360,1756228876924,-480.0,0.00041095,120]
[381473361,1756228876972,-480.0,0.00041095,120]
[381473362,1756228877016,-480.0,0.00041095,120]
[381473363,1756228877059,-587.45,0.00041095,120]
[381473364,1756228877101,-590.09,0.00041095,120]
[381473365,1756228877140,-480.0,0.00041095,120]
[381473366,1756228877179,-773.55,0.00041095,120]
[381473367,1756228877217,-480.0,0.00041095,120]
[381473368,1756228877257,-480.0,0.00041095,120]
[381473369,1756228877296,-480.0,0.00041095,120]
[381473370,1756228877333,-480.0,0.00041095,120]
[381473371,1756228877372,-480.0,0.00041095,120]
[381473372,1756228877411,-480.0,0.00041095,120]
[381473373,1756228877449,-482.5,0.00041095,120]
[381473374,1756228877488,-846.75,0.00041095,120]
[381473375,1756228877527,-480.0,0.00041095,120]
[381473376,1756228877566,-673.03,0.00041095,120]
[381473377,1756228877606,-674.88,0.00041095,120]
[381473378,1756228877646,-683.19,0.00041095,120]
[381473379,1756228877687,-480.0,0.00041095,120]
[381473380,1756228877732,-480.0,0.00041095,120]
[381473381,1756228877778,-499.35,0.00041095,120]
[381473382,1756228877821,-480.0,0.00041095,120]
[381473383,1756228877864,-480.0,0.00041095,120]
[381473384,1756228877907,-480.0,0.00041095,120]
[381473385,1756228877950,-480.0,0.00041095,120]
[381473386,1756228878151,-480.0,0.00041095,120]
[381473387,1756228878205,-2087.92,0.00041095,120]
[381473388,1756228878252,-480.0,0.00041095,120]
[381473389,1756228878298,-480.0,0.00041095,120]
[381473390,1756228878344,-480.0,0.00041095,120]
[381473391,1756228878390,-480.0,0.00041095,120]
[381473392,1756228878432,-546.21,0.00041095,120]
[381473393,1756228878476,-480.0,0.00041095,120]
[381473394,1756228878520,-951.88,0.00041095,120]
[381473395,1756228878565,-480.0,0.00041095,120]
[381473396,1756228878611,-480.0,0.00041095,120]
[381473397,1756228878657,-480.0,0.00041095,120]
[381473398,1756228878703,-480.0,0.00041095,120]
[381473399,1756228878752,-1136.02,0.00041095,120]
[381473400,1756228878803,-480.0,0.00041095,120]
[381473401,1756228878854,-480.0,0.00041095,120]
[381473402,1756228878903,-480.0,0.00041095,120]
[381473403,1756228878953,-289.99569818,0.00041095,120]
[381473404,1756228879003,-494.95,0.00041095,120]
[381473405,1756228879053,-480.0,0.00041095,120]
[381473406,1756228879102,-480.0,0.00041095,120]
[381473407,1756228879150,-480.0,0.00041095,120]
[381473408,1756228879200,-480.0,0.00041095,120]
[381473409,1756228879244,-480.0,0.00041095,120]
[381473410,1756228879288,-566.83,0.00041095,120]